bitfinex/quotes_SOLUSD_20241210
["timestamp","ask_amount","ask_price","bid_price","bid_amount"]
[1733820523574,20.0,217.72,217.58,6.0371]
[1733820523986,20.0,217.7,217.53,7.7017]
[1733820524366,23.776884,217.65,217.53,7.7017]
[1733820524582,23.776884,217.65,217.54,312.0]
[1733820525268,23.776884,217.65,217.55,0.68934001]
[1733820525466,20.0,217.72,217.55,14.65879049]
[1733820526066,20.0,217.72,217.55,0.68934001]
[1733820526998,23.776884,217.67,217.55,14.65879049]
[1733820527384,23.776884,217.67,217.56,13.96945048]
[1733820527574,23.776884,217.67,217.57,0.68917311]
[1733820527976,20.0,217.72,217.58,13.96945048]
[1733820528170,23.776884,217.71,217.59,0.6891195]
[1733820528385,20.0,217.68,217.62,312.0]
[1733820528587,23.776884,217.67,217.62,312.0]
[1733820528786,23.776884,217.67,217.55,13.96945048]
[1733820528980,23.776884,217.67,217.56,0.68922309]
[1733820529495,23.776884,217.67,217.53,8.3909911]
[1733820530007,23.776884,217.63,217.53,8.3909911]
[1733820530181,23.776884,217.63,217.53,7.7017]
[1733820530502,23.776884,217.59,217.53,1.6646]
[1733820531682,23.776884,217.59,217.53,313.6646]
[1733820532898,23.776884,217.59,217.48,7.6086]
[1733820535499,2.7041563,217.64,217.48,1.5715]
[1733820535500,23.776884,217.55,217.48,1.5715]
[1733820535876,23.776884,217.55,217.48,313.5715]
[1733820538883,23.776884,217.55,217.48,1.5715]
[1733820540998,2.7041563,217.64,217.49,0.68952551]
[1733820541507,2.7041563,217.64,217.49,14.65897599]
[1733820542003,2.7041563,217.64,217.51,312.0]
[1733820542211,2.7041563,217.64,217.52,0.68941984]
[1733820542583,2.7041563,217.64,217.5,13.96945048]
[1733820542784,2.7041563,217.64,217.5,14.65887218]
[1733820543483,0.5659,217.67,217.52,13.96945048]
[1733820543701,20.0,217.63,217.53,0.68932132]
[1733820543912,0.5659,217.67,217.53,0.68932132]
[1733820544212,1.74209351,217.73,217.55,15.62285048]
[1733820544395,1.74209351,217.73,217.56,0.68919597]
[1733820544597,2.74953139,217.69,217.56,0.68919597]
[1733820545420,2.74953139,217.69,217.58,312.0]
[1733820545592,20.0,217.72,217.59,0.68917896]
[1733820546095,2.7450384,217.7,217.59,0.68917896]
[1733820546614,2.7450384,217.7,217.56,0.68915796]
[1733820546912,20.0,217.66,217.56,0.68915796]
[1733820547080,20.0,217.66,217.57,6.1204]
[1733820547280,23.776884,217.69,217.58,0.68915348]
[1733820548181,20.0,217.68,217.59,13.96945048]
[1733820548380,23.776884,217.71,217.6,0.68908541]
[1733820548707,23.776884,217.71,217.58,0.68912653]
[1733820549004,23.776884,217.71,217.63,312.0]
[1733820549999,23.776884,217.71,217.57,6.1204]
[1733820550000,20.0,217.68,217.57,6.1204]
[1733820550206,20.0,217.68,217.57,6.80957715]
[1733820550414,20.0,217.68,217.57,20.77902763]
[1733820550597,20.0,217.68,217.58,13.96945048]
[1733820550799,23.776884,217.71,217.59,14.65855268]
[1733820551105,23.776884,217.71,217.6,13.96945048]
[1733820551311,23.776884,217.71,217.61,14.65852538]
[1733820551730,0.5661186,217.75,217.63,13.96945048]
[1733820551898,0.5661186,217.75,217.64,0.68894898]
[1733820552096,0.5661186,217.75,217.65,13.96945048]
[1733820552294,0.5661186,217.75,217.66,6.80932745]
[1733820552634,0.5661186,217.75,217.68,1.5622]
[1733820552922,0.5661186,217.75,217.71,312.0]
[1733820554392,0.5661186,217.75,217.69,13.96945048]
[1733820554618,0.5661186,217.75,217.68,2.25099155]
[1733820554822,0.5661186,217.75,217.68,1.5622]
[1733820557423,0.5661186,217.75,217.68,313.5622]
[1733820559235,0.5661186,217.75,217.68,1.5622]
[1733820562319,0.5661186,217.75,217.71,312.0]
[1733820564014,0.5661186,217.75,217.72,0.68876719]
[1733820564317,0.5661186,217.75,217.73,13.96945048]
[1733820564516,0.5661186,217.75,217.74,0.68865056]
[1733820564925,0.5661186,217.75,217.74,14.65810104]
[1733820565342,0.5661186,217.75,217.74,16.28450104]
[1733820566747,0.5661186,217.75,217.74,2.31505056]
[1733820566919,0.5661186,217.75,217.74,1.6264]
[1733820567435,0.5661186,217.75,217.74,313.6264]
[1733820568323,0.5661186,217.75,217.74,15.59585048]
[1733820568518,0.5661186,217.75,217.74,16.28445392]
[1733820571322,0.5661186,217.75,217.74,328.28445392]
[1733820571521,0.5661186,217.75,217.74,327.59585048]
[1733820571729,0.5661186,217.75,217.74,313.6264]
[1733820572025,0.5661186,217.75,217.74,1.6264]
[1733820572834,0.5661186,217.75,217.74,2.31509584]
[1733820574838,0.5661186,217.75,217.74,314.31509584]
[1733820575014,0.5661186,217.75,217.74,313.6264]
[1733820575415,0.5661186,217.75,217.74,327.59585048]
[1733820579847,0.5661186,217.75,217.74,351.37273448]
[1733820580149,0.5661186,217.96,217.81,13.96945048]
[1733820580150,3.34984559,217.96,217.81,13.96945048]
[1733820580356,3.34984559,217.96,217.8,13.96945048]
[1733820580542,3.34984559,217.96,217.82,0.688374]
[1733820580948,5.20201753,217.96,217.76,0.68841128]
[1733820581259,0.06575803,217.95,217.76,0.68841128]
[1733820581425,23.84264203,217.95,217.76,0.68841128]
[1733820581851,20.0,217.92,217.76,0.68841128]
[1733820582048,23.776884,217.91,217.76,0.68841128]
[1733820583064,23.776884,217.91,217.76,34.65786176]
[1733820583231,23.776884,217.91,217.78,312.0]
[1733820583432,23.776884,217.91,217.79,0.68848082]
[1733820584556,23.776884,217.91,217.8,0.68846847]
[1733820584957,20.0,217.94,217.8,0.68846847]
[1733820585436,20.0,217.9,217.79,0.68845078]
[1733820586561,23.776884,217.89,217.76,0.68854831]
[1733820586870,23.776884,217.89,217.76,312.68854831]
[1733820587155,23.776884,217.89,217.76,312.0]
[1733820587459,23.776884,217.89,217.74,15.59585048]
[1733820587664,23.776884,217.89,217.75,0.68858664]
[1733820588051,23.776884,217.85,217.74,1.6264]
[1733820588430,23.776884,217.81,217.69,1.6589]
[1733820588631,23.776884,217.77,217.67,0.68872203]
[1733820588960,23.776884,217.77,217.64,1.6589]
[1733820589155,20.0,217.74,217.59,0.68897794]
[1733820589347,20.0,217.74,217.6,13.96945048]
[1733820590344,20.0,217.74,217.62,312.0]
[1733820591162,20.0,217.74,217.63,0.68903666]
[1733820592040,20.0,217.74,217.62,13.96945048]
[1733820592269,20.0,217.74,217.63,14.6584121]
[1733820592463,20.0,217.74,217.63,0.68896162]
[1733820593147,20.0,217.74,217.62,0.68897043]
[1733820594247,20.0,217.74,217.65,312.0]
[1733820600186,20.0,217.74,217.61,13.96945048]
[1733820600351,20.0,217.74,217.62,0.68898804]
[1733820601246,20.0,217.74,217.59,2.3479544]
[1733820601247,23.776884,217.73,217.59,2.3479544]
[1733820601951,20.0,217.7,217.55,13.96945048]
[1733820602151,20.0,217.67,217.56,0.68923077]
[1733820602458,23.776884,217.66,217.54,2.34813077]
[1733820603075,23.776884,217.66,217.54,314.34813077]
[1733820603269,23.776884,217.66,217.54,313.6589]
[1733820603483,23.776884,217.66,217.55,0.68933212]
[1733820603881,20.0,217.63,217.54,1.6589]
[1733820604179,23.776884,217.62,217.49,1.6589]
[1733820604692,23.776884,217.62,217.5,0.68945488]
[1733820605184,20.0,217.59,217.49,1.6589]
[1733820605557,1.1319,217.63,217.52,13.96945048]
[1733820605754,43.776884,217.67,217.54,13.96945048]
[1733820605974,1.1319,217.68,217.55,0.68921766]
[1733820606781,1.1319,217.68,217.56,312.0]
[1733820607460,23.776884,217.67,217.51,13.96945048]
[1733820607679,23.776884,217.67,217.52,0.68935929]
[1733820607878,23.776884,217.63,217.52,0.68935929]
[1733820608280,1.1319,217.68,217.52,14.65880977]
[1733820608281,20.0,217.67,217.52,14.65880977]
[1733820608476,20.0,217.63,217.52,14.65880977]
[1733820609189,20.0,217.63,217.52,0.68935929]
[1733820609382,20.0,217.63,217.51,0.68935349]
[1733820609557,20.0,217.59,217.49,1.6589]
[1733820610186,20.0,217.55,217.45,13.96945048]
[1733820610385,20.0,217.55,217.49,312.0]
[1733820610561,20.0,217.55,217.44,1.6589]
[1733820610761,20.0,217.55,217.44,2.348542]
[1733820610968,20.0,217.55,217.44,1.6589]
[1733820611169,20.0,217.55,217.42,7.00846704]
[1733820611578,20.0,217.55,217.43,13.96945048]
[1733820611787,20.0,217.55,217.44,14.65906026]
[1733820612265,20.0,217.55,217.44,0.68960978]
[1733820612266,23.776884,217.54,217.44,0.68960978]
[1733820612461,23.776884,217.54,217.42,0.68968629]
[1733820613482,23.776884,217.56,217.45,312.0]
[1733820613789,20.0,217.53,217.46,0.68955969]
[1733820614181,20.0,217.53,217.4,13.96945048]
[1733820614384,20.0,217.53,217.41,0.68970352]
[1733820615489,20.0,217.53,217.41,14.659154]
[1733820616090,20.0,217.53,217.41,0.68970352]
[1733820616271,23.776884,217.52,217.41,0.68970352]
[1733820616477,23.776884,217.52,217.4,0.68976314]
[1733820616982,23.776884,217.52,217.4,312.68976314]
[1733820617168,23.776884,217.52,217.4,312.0]
[1733820618281,23.776884,217.52,217.41,0.68974817]
[1733820618665,20.0,217.47,217.35,13.96945048]
[1733820618889,20.0,217.47,217.36,0.68985761]
[1733820619090,20.0,217.43,217.34,0.68988627]
[1733820619268,20.0,217.43,217.3,5.596]
[1733820619687,23.776884,217.42,217.3,5.596]
[1733820619988,23.776884,217.45,217.32,13.96945048]
[1733820620171,1.1319,217.47,217.3,5.596]
[1733820620172,20.0,217.42,217.34,13.96945048]
[1733820620370,20.0,217.42,217.3,5.596]
[1733820620371,20.0,217.42,217.35,14.65933386]
[1733820620572,21.1319,217.47,217.35,0.68988338]
[1733820620766,20.0,217.43,217.31,0.6899192]
[1733820621377,20.0,217.43,217.31,312.6899192]
[1733820621692,23.776884,217.42,217.31,312.0]
[1733820622270,23.776884,217.42,217.3,14.96945048]
[1733820622271,20.0,217.39,217.3,1.0]
[1733820622471,23.776884,217.38,217.3,1.0]
[1733820624186,26.5663,217.39,217.3,1.0]
[1733820624996,6.5663,217.45,217.32,13.96945048]
[1733820625292,6.5663,217.45,217.32,312.0]
[1733820625490,6.5663,217.45,217.3,1.0]
[1733820626293,20.0,217.42,217.3,1.0]
[1733820626503,23.776884,217.4,217.3,1.0]
[1733820627000,23.776884,217.41,217.3,1.0]
[1733820627382,23.776884,217.41,217.31,0.6901403]
[1733820627581,23.776884,217.41,217.3,1.0]
[1733820628408,23.776884,217.41,217.31,312.0]
[1733820629180,20.0,217.42,217.32,0.69007122]
[1733820629376,6.5663,217.45,217.32,0.69007122]
[1733820629377,6.5663,217.45,217.33,13.96945048]
[1733820629607,6.5663,217.45,217.34,0.68988331]
[1733820630602,20.0,217.42,217.34,0.68988331]
[1733820631403,20.0,217.42,217.3,1.0]
[1733820631590,23.776884,217.41,217.3,1.0]
[1733820632281,23.776884,217.41,217.3,313.0]
[1733820632799,20.0,217.42,217.31,0.69012182]
[1733820633613,1.1319,217.47,217.34,13.96945048]
[1733820633786,1.1319,217.47,217.35,14.65930541]
[1733820635090,1.1319,217.47,217.32,8.6819591]
[1733820635699,23.776884,217.46,217.32,8.6819591]
[1733820635999,20.0,217.43,217.35,312.0]
[1733820636207,20.0,217.43,217.36,0.68996642]
[1733820636408,8.40183246,217.52,217.36,0.68996642]
[1733820636409,20.0,217.48,217.37,13.96945048]
[1733820636702,20.0,217.48,217.38,0.68979554]
[1733820637079,20.0,217.5,217.38,0.68979554]
[1733820637412,20.0,217.52,217.38,0.68979554]
[1733820637709,20.0,217.48,217.38,0.68979554]
[1733820639513,20.0,217.48,217.4,312.0]
[1733820641595,23.776884,217.47,217.33,13.96945048]
[1733820641916,23.776884,217.47,217.34,0.68993047]
[1733820641917,20.0,217.44,217.34,0.68993047]
[1733820642284,20.0,217.44,217.34,14.65938095]
[1733820643084,20.0,217.44,217.32,7.9921]
[1733820643286,20.0,217.4,217.32,1.5309]
[1733820643484,20.0,217.4,217.3,1.0]
[1733820643485,23.776884,217.39,217.3,1.0]
[1733820643924,20.0,217.36,217.3,1.0]
[1733820651633,20.0,217.43,217.3,14.96945048]
[1733820652119,20.0,217.43,217.3,1.0]
[1733820652415,20.0,217.42,217.3,1.0]
[1733820652817,23.776884,217.41,217.3,1.0]
[1733820653131,20.0,217.38,217.3,1.0]
[1733820654225,20.0,217.38,217.32,312.0]
[1733820657628,23.776884,217.37,217.3,1.0]
[1733820658915,20.0,217.34,217.3,1.0]
[1733820660131,20.0,217.31,217.3,1.0]
[1733820660432,43.776884,217.31,217.3,1.0]
[1733820662210,20.0,217.31,217.3,1.0]
[1733820662413,1.1319,217.36,217.3,1.0]
[1733820662610,1.82549612,217.39,217.3,1.0]
[1733820662805,1.1319,217.41,217.3,1.0]
[1733820663925,23.776884,217.38,217.3,1.0]
[1733820664234,20.0,217.35,217.3,1.0]
[1733820665422,23.776884,217.45,217.3,2.5645]
[1733820665741,10.0,217.45,217.3,2.5645]
[1733820666236,10.0,217.46,217.3,2.5645]
[1733820666567,19.24347769,217.48,217.3,16.53395048]
[1733820666738,19.24347769,217.48,217.3,2.5645]
[1733820666943,10.0,217.45,217.3,2.5645]
[1733820667109,10.0,217.45,217.3,1.0]
[1733820667320,0.63784566,217.44,217.3,1.0]
[1733820667708,23.776884,217.35,217.3,1.0]
[1733820668013,23.776884,217.31,217.3,1.0]
[1733820671247,7.20592203,217.42,217.3,1.0]
[1733820671454,7.2538,217.43,217.3,1.0]
[1733820672322,2.76166373,217.37,217.3,1.0]
[1733820672524,23.776884,217.36,217.3,1.0]
[1733820673128,7.2538,217.43,217.3,1.0]
[1733820673329,0.63784566,217.45,217.31,7.03612348]
[1733820673330,1.84309703,217.45,217.31,7.03612348]
[1733820673536,12.78908613,217.48,217.31,7.03612348]
[1733820673840,12.78908613,217.48,217.31,6.346]
[1733820674240,10.0,217.47,217.31,6.346]
[1733820674547,23.776884,217.41,217.31,318.346]
[1733820674750,20.0,217.38,217.31,318.346]
[1733820675250,14.61275097,217.48,217.32,14.65952683]
[1733820675251,1.82366484,217.48,217.32,14.65952683]
[1733820675545,16.14171779,217.49,217.32,14.65952683]
[1733820676047,11.81574253,217.49,217.32,14.65952683]
[1733820676416,20.0,217.42,217.32,14.65952683]
[1733820676851,20.0,217.42,217.32,0.69007635]
[1733820677455,2.49707128,217.51,217.33,13.96945048]
[1733820677755,2.49707128,217.51,217.32,14.65952683]
[1733820678134,2.49707128,217.51,217.33,312.0]
[1733820678952,20.0,217.43,217.33,312.0]
[1733820679160,20.0,217.43,217.34,0.68996403]
[1733820679455,23.776884,217.42,217.31,6.346]
[1733820681063,23.776884,217.38,217.31,6.346]
[1733820682332,20.0,217.35,217.3,2.6205]
[1733820682532,23.776884,217.34,217.3,1.0]
[1733820685559,43.776884,217.31,217.3,1.0]
[1733820691942,43.776884,217.3,217.2,0.5661186]
[1733820692769,20.0,217.28,217.2,0.5661186]
[1733820692978,43.776884,217.21,217.2,0.5661186]
[1733820699049,20.0,217.21,217.2,0.5661186]
[1733820700481,43.776884,217.21,217.2,0.5661186]
[1733820706372,20.0,217.21,217.2,0.5661186]
[1733820707893,43.776884,217.21,217.2,0.5661186]
[1733820718098,43.776884,217.21,217.13,1.6341]
[1733820718407,43.776884,217.2,217.13,1.6341]
[1733820718802,43.776884,217.2,217.05,1.5397]
[1733820720110,43.776884,217.2,217.05,313.5397]
[1733820720481,43.776884,217.2,217.05,327.50915048]
[1733820720685,23.776884,217.21,217.07,13.96945048]
[1733820721620,23.776884,217.21,217.07,14.6602853]
[1733820721915,1.85757778,217.24,217.1,1.5397]
[1733820722082,1.1319,217.26,217.1,1.5397]
[1733820722402,2.95975526,217.26,217.1,1.5397]
[1733820722593,1.1319,217.26,217.1,1.5397]
[1733820723391,23.776884,217.25,217.1,1.5397]
[1733820723611,20.0,217.22,217.11,312.0]
[1733820723813,20.0,217.18,217.11,312.0]
[1733820726019,23.776884,217.22,217.12,6.74924371]
[1733820726583,23.776884,217.29,217.12,6.74924371]
[1733820727412,23.776884,217.24,217.12,6.74924371]
[1733820727823,23.776884,217.24,217.12,20.71869419]
[1733820728027,1.87008783,217.3,217.16,1.5397]
[1733820728191,1.27569132,217.35,217.16,16.19965108]
[1733820728395,1.27569132,217.35,217.18,13.96945048]
[1733820728625,1.27569132,217.35,217.19,16.19960149]
[1733820728626,2.77367233,217.32,217.19,16.19960149]
[1733820729218,1.27569132,217.35,217.21,13.96945048]
[1733820729417,1.27569132,217.35,217.22,0.69034006]
[1733820729721,1.88762014,217.36,217.22,0.69034006]
[1733820729722,1.88762014,217.36,217.23,312.0]
[1733820730030,2.40759132,217.4,217.23,312.0]
[1733820730198,1.1319,217.4,217.23,312.0]
[1733820730394,1.27569132,217.39,217.23,325.96945048]
[1733820730613,2.80044547,217.36,217.24,0.69029574]
[1733820730800,23.776884,217.35,217.24,0.69029574]
[1733820731021,23.776884,217.35,217.23,13.96945048]
[1733820732221,16.1754,217.48,217.29,15.54015048]
[1733820732528,2.7266841,217.43,217.29,15.54015048]
[1733820732816,1.66436537,217.47,217.31,20.07635048]
[1733820732991,1.66436537,217.47,217.32,14.65943398]
[1733820733403,1.66436537,217.47,217.33,13.96945048]
[1733820733607,1.66436537,217.47,217.34,1.5707]
[1733820733805,1.66436537,217.47,217.34,313.5707]
[1733820734222,4.45936074,217.47,217.34,313.5707]
[1733820734524,4.45936074,217.47,217.34,1.5707]
[1733820734729,43.776884,217.46,217.34,1.5707]
[1733820737533,43.776884,217.46,217.34,313.5707]
[1733820738145,43.776884,217.46,217.34,1.5707]
[1733820738827,23.776884,217.39,217.34,1.5707]
[1733820739333,1.66436537,217.45,217.34,1.5707]
[1733820739499,23.776884,217.4,217.34,1.5707]
[1733820742826,23.776884,217.46,217.34,1.5707]
[1733820742998,23.776884,217.42,217.34,1.5707]
[1733820743701,20.0,217.46,217.34,1.5707]
[1733820743906,23.776884,217.45,217.34,1.5707]
[1733820744111,23.776884,217.45,217.34,2.26064886]
[1733820744326,23.776884,217.46,217.34,2.26064886]
[1733820744515,3.50776226,217.49,217.35,13.96945048]
[1733820744717,5.45787526,217.55,217.37,22.05955048]
[1733820744924,5.99034063,217.55,217.39,13.96945048]
[1733820745427,1.66436537,217.55,217.39,13.96945048]
[1733820745821,1.66436537,217.55,217.4,312.0]
[1733820746033,3.48843187,217.55,217.4,325.96945048]
[1733820746198,3.48843187,217.55,217.42,1.5239]
[1733820746534,23.776884,217.54,217.42,1.5239]
[1733820747025,1.66436537,217.55,217.42,1.5239]
[1733820747528,20.0,217.53,217.42,1.5239]
[1733820748101,23.776884,217.52,217.42,1.5239]
[1733820748325,2.74111141,217.54,217.42,1.5239]
[1733820748326,23.776884,217.48,217.42,1.5239]
[1733820748624,20.0,217.45,217.42,1.5239]
[1733820749004,23.776884,217.44,217.42,1.5239]
[1733820750118,23.776884,217.44,217.37,8.2051]
[1733820750625,20.0,217.41,217.37,8.2051]
[1733820755432,23.776884,217.4,217.37,1.6389]
[1733820755731,23.776884,217.4,217.31,7.7836]
[1733820755732,23.776884,217.36,217.31,7.7836]
[1733820755939,23.776884,217.36,217.31,1.6389]
[1733820756431,20.0,217.33,217.31,1.6389]
[1733820756663,20.0,217.33,217.26,7.7836]
[1733820758331,23.776884,217.36,217.26,7.7836]
[1733820758534,1.82095534,217.39,217.26,7.7836]
[1733820758720,23.39823346,217.41,217.26,319.7836]
[1733820759816,23.776884,217.4,217.26,319.7836]
[1733820760018,23.776884,217.36,217.26,319.7836]
[1733820761214,23.776884,217.36,217.26,7.7836]
[1733820761412,20.0,217.33,217.26,7.7836]
[1733820762241,23.776884,217.36,217.26,7.7836]
[1733820763047,2.82641389,217.39,217.26,7.7836]
[1733820763217,2.48647978,217.41,217.26,7.7836]
[1733820763218,20.0,217.41,217.28,13.96945048]
[1733820763417,0.63784566,217.48,217.29,0.69011486]
[1733820764229,0.63784566,217.48,217.3,312.0]
[1733820764435,23.776884,217.47,217.3,312.0]
[1733820764633,20.0,217.44,217.3,312.0]
[1733820764818,20.0,217.46,217.31,0.69011891]
[1733820765019,2.46972155,217.48,217.32,20.13115048]
[1733820765450,2.46972155,217.48,217.32,6.1617]
[1733820766211,2.82717568,217.46,217.32,6.1617]
[1733820766413,23.776884,217.45,217.32,6.1617]
[1733820766621,20.0,217.42,217.32,6.1617]
[1733820767428,4.32597526,217.51,217.35,13.96945048]
[1733820767738,2.74847427,217.53,217.39,1.6645]
[1733820768842,20.0,217.52,217.39,1.6645]
[1733820769424,20.0,217.48,217.39,1.6645]
[1733820770135,20.0,217.52,217.39,1.6645]
[1733820770844,20.0,217.52,217.39,2.35427031]
[1733820771040,20.0,217.52,217.42,312.0]
[1733820771218,2.74847427,217.53,217.42,312.0]
[1733820771421,5.33748613,217.55,217.42,312.0]
[1733820771729,8.09830365,217.55,217.42,312.0]
[1733820771930,9.93658295,217.55,217.42,312.0]
[1733820772920,23.776884,217.51,217.42,312.0]
[1733820773648,20.0,217.52,217.41,13.96945048]
[1733820775331,20.0,217.52,217.42,8.44687254]
[1733820775550,23.776884,217.6,217.43,13.96945048]
[1733820775752,0.63784566,217.61,217.45,13.96945048]
[1733820776145,0.63784566,217.61,217.44,14.659042]
[1733820776865,0.63784566,217.61,217.49,312.0]
[1733820777052,43.776884,217.6,217.5,1.5733]
[1733820777457,20.0,217.55,217.5,1.5733]
[1733820778269,23.776884,217.56,217.5,1.5733]
[1733820778466,20.0,217.6,217.5,1.5733]
[1733820778767,23.776884,217.59,217.5,1.5733]
[1733820779283,0.63784566,217.61,217.51,6.1839]
[1733820779576,23.776884,217.6,217.51,6.1839]
[1733820781269,23.776884,217.6,217.51,318.1839]
[1733820782448,20.0,217.59,217.51,318.1839]
[1733820784379,23.776884,217.58,217.51,6.1839]
[1733820784547,20.0,217.55,217.5,1.5733]
[1733820784744,1.89212205,217.63,217.5,1.5733]
[1733820784974,20.0,217.59,217.5,1.5733]
[1733820785150,20.0,217.59,217.5,2.26275446]
[1733820785347,20.0,217.59,217.5,1.5733]
[1733820785552,23.776884,217.58,217.5,1.5733]
[1733820785746,20.0,217.55,217.5,1.5733]
[1733820788181,0.63784566,217.66,217.5,1.5733]
[1733820788352,23.776884,217.65,217.5,1.5733]
[1733820788766,23.776884,217.63,217.5,1.5733]
[1733820789850,23.776884,217.59,217.5,1.5733]
[1733820790567,20.0,217.6,217.5,1.5733]
[1733820790770,1.8211632,217.63,217.5,1.5733]
[1733820790973,0.63784566,217.64,217.5,1.5733]
[1733820791476,0.63784566,217.64,217.5,313.5733]
[1733820791983,20.0,217.6,217.5,313.5733]
[1733820792156,23.776884,217.59,217.5,313.5733]
[1733820793851,20.0,217.56,217.5,313.5733]
[1733820794476,20.0,217.52,217.5,1.5733]
[1733820796587,20.0,217.52,217.46,6.1839]
[1733820798257,20.0,217.54,217.46,6.1839]
[1733820798874,20.0,217.56,217.46,6.1839]
[1733820800273,23.776884,217.55,217.46,6.1839]
[1733820800756,23.776884,217.55,217.46,318.1839]
[1733820802670,23.776884,217.55,217.46,6.1839]
[1733820802982,23.776884,217.59,217.46,6.1839]
[1733820803483,20.0,217.56,217.46,20.15335048]
[1733820803687,20.0,217.56,217.46,20.8429658]
[1733820803859,20.0,217.6,217.46,20.8429658]
[1733820804577,2.81235498,217.61,217.46,20.8429658]
[1733820804890,20.0,217.57,217.47,13.96945048]
[1733820805683,20.0,217.57,217.52,312.0]
[1733820806063,20.0,217.57,217.53,7.6353]
[1733820806264,23.776884,217.63,217.53,7.6353]
[1733820807764,23.776884,217.59,217.53,7.6353]
[1733820809863,23.776884,217.59,217.53,319.6353]
[1733820813176,23.776884,217.59,217.53,7.6353]
[1733820815968,20.0,217.61,217.53,7.6353]
[1733820816283,20.0,217.61,217.53,319.6353]
[1733820816595,20.0,217.61,217.53,7.6353]
[1733820819399,20.0,217.61,217.54,312.0]
[1733820821673,23.776884,217.62,217.54,312.0]
[1733820821994,20.0,217.59,217.54,312.0]
[1733820826101,20.0,217.59,217.53,7.6353]
[1733820826973,23.776884,217.58,217.53,7.6353]
[1733820828298,20.0,217.6,217.53,7.6353]
[1733820828477,20.0,217.61,217.53,7.6353]
[1733820829086,20.0,217.61,217.56,312.0]
[1733820829381,7.20592203,217.68,217.59,8.93416458]
[1733820829595,7.20592203,217.69,217.6,1.6305]
[1733820829784,9.0626835,217.71,217.61,6.5586]
[1733820830101,7.20592203,217.7,217.61,6.5586]
[1733820830396,7.20592203,217.71,217.61,6.5586]
[1733820830596,0.5661186,217.75,217.71,8.1891]
[1733820830896,0.5661186,217.75,217.74,8.93416458]
[1733820831204,0.5661186,217.75,217.74,9.62281881]
[1733820832679,0.5661186,217.75,217.74,321.62281881]
[1733820832889,0.5661186,217.75,217.74,320.93416458]
[1733820833202,0.5661186,217.75,217.74,325.91709668]
[1733820833498,7.7513186,217.96,217.81,13.91709668]
[1733820834277,7.7513186,217.96,217.82,13.91709668]
[1733820834479,2.78870694,217.94,217.81,13.91709668]
[1733820834885,43.776884,217.93,217.81,13.91709668]
[1733820835385,5.1628721,217.96,217.83,13.91709668]
[1733820835593,3.28373004,217.96,217.84,13.91709668]
[1733820836091,0.5661186,217.96,217.85,13.91709668]
[1733820836292,0.5661186,217.96,217.86,13.91709668]
[1733820836611,0.5661186,217.96,217.9,312.0]
[1733820837099,0.5661186,217.96,217.85,13.91709668]
[1733820837302,0.5661186,217.96,217.85,14.60542996]
[1733820837881,23.776884,217.95,217.85,14.60542996]
[1733820838184,0.5661186,217.96,217.85,14.60542996]
[1733820838880,23.776884,217.95,217.85,13.91709668]
[1733820839382,0.5661186,217.96,217.85,14.60547268]
[1733820839608,0.5661186,217.96,217.86,13.91709668]
[1733820839993,0.5661186,217.96,217.86,325.91709668]
[1733820840613,23.776884,217.97,217.86,325.91709668]
[1733820840818,0.291668,217.96,217.87,14.60540244]
[1733820841317,0.291668,217.96,217.88,13.91709668]
[1733820841725,0.291668,217.96,217.91,13.91709668]
[1733820841885,0.291668,217.96,217.92,13.91709668]
[1733820842281,0.291668,217.96,217.91,13.91709668]
[1733820842913,0.291668,217.96,217.9,13.91709668]
[1733820843124,0.291668,217.96,217.88,13.91709668]
[1733820843422,0.291668,217.96,217.89,14.60531233]